bitfinex/quotes_BTCUSD_20260311
["timestamp","ask_amount","ask_price","bid_price","bid_amount"]
[1773243141043,0.08015152,69844.0,69790.0,0.07904431]
[1773243141044,0.1358501,69834.0,69791.0,0.07904431]
[1773243141271,0.00144,69840.0,69791.0,0.06904431]
[1773243141578,0.1358501,69843.0,69795.0,0.07904431]
[1773243141778,0.1475701,69845.0,69799.0,0.07904431]
[1773243142000,0.1475701,69845.0,69803.0,0.07904431]
[1773243142001,0.01172,69845.0,69803.0,0.07904431]
[1773243142517,0.01172,69845.0,69802.0,0.07163118]
[1773243142518,0.27140225,69873.0,69812.0,0.07904431]
[1773243142705,0.27140225,69873.0,69811.0,0.27172955]
[1773243142706,0.0715502,69881.0,69822.0,0.07904431]
[1773243142864,0.08155152,69880.0,69814.0,0.619464]
[1773243143060,0.0014,69879.0,69818.0,0.200075]
[1773243143260,0.08015152,69878.0,69819.0,0.17192]
[1773243143689,0.08015152,69876.0,69821.0,0.07904431]
[1773243144054,0.08158279,69868.0,69822.0,0.07161066]
[1773243144309,0.00144,69867.0,69822.0,0.07161066]
[1773243144706,1.652375,69866.0,69811.0,0.34335098]
[1773243144965,0.08015152,69862.0,69810.0,0.07162092]
[1773243145167,0.08015152,69858.0,69810.0,0.07162092]
[1773243145317,0.0014,69857.0,69811.0,0.27172955]
[1773243145520,0.08015152,69856.0,69811.0,0.27172955]
[1773243146081,0.08015152,69856.0,69812.0,0.07162092]
[1773243146082,0.08015152,69852.0,69812.0,0.07162092]
[1773243146288,0.00144,69851.0,69812.0,0.07162092]
[1773243146496,0.08015152,69850.0,69812.0,0.07162092]
[1773243147367,0.00144,69849.0,69813.0,0.27172955]
[1773243147826,0.00144,69849.0,69812.0,0.07162092]
[1773243147827,0.08159152,69849.0,69812.0,0.07162092]
[1773243147968,0.07158401,69848.0,69800.0,0.07163268]
[1773243148169,0.08159152,69847.0,69800.0,0.07163268]
[1773243148376,0.07156616,69866.0,69803.0,0.07904431]
[1773243148608,0.07156616,69866.0,69801.0,0.0014]
[1773243148609,0.07356484,69867.0,69823.0,0.07904431]
[1773243148819,0.002,69867.0,69825.0,0.07904431]
[1773243149025,0.00143127,69868.0,69825.0,0.07904431]
[1773243149260,0.07154201,69889.0,69826.0,1.20383]
[1773243149481,0.00144,69884.0,69828.0,0.07904431]
[1773243149670,0.00144,69884.0,69829.0,0.220777]
[1773243149983,0.00144,69884.0,69829.0,0.07904431]
[1773243150183,0.08015152,69881.0,69830.0,0.07304246]
[1773243150732,0.0014,69880.0,69830.0,0.17643242]
[1773243150942,0.0014,69879.0,69831.0,0.07904431]
[1773243151345,1.145208,69877.0,69810.0,0.44360955]
[1773243151583,0.02865,69873.0,69823.0,0.00144]
[1773243151876,0.08015152,69871.0,69823.0,0.0014]
[1773243152035,0.07156351,69868.0,69824.0,0.07160861]
[1773243152243,0.08015152,69867.0,69824.0,0.07160861]
[1773243152575,0.08015152,69864.0,69825.0,0.00144]
[1773243153212,0.00144,69863.0,69825.0,0.00144]
[1773243153512,0.08015152,69862.0,69825.0,0.00144]
[1773243153882,0.07156351,69868.0,69825.0,0.00144]
[1773243154216,0.07156556,69866.0,69826.0,0.15065087]
[1773243154417,0.00144,69865.0,69826.0,0.07160656]
[1773243154820,0.16763822,69864.0,69827.0,0.00144]
[1773243154976,0.08015152,69863.0,69827.0,0.00144]
[1773243155380,0.08015152,69863.0,69826.0,0.07160656]
[1773243155381,0.21702255,69863.0,69828.0,0.00144]
[1773243155581,0.07156556,69866.0,69828.0,0.00144]
[1773243156104,0.00143127,69868.0,69830.0,0.10338996]
[1773243156316,0.0730008,69871.0,69834.0,0.35077386]
[1773243156474,0.0730008,69871.0,69835.0,0.00148]
[1773243156803,0.0730008,69871.0,69836.0,0.00148]
[1773243157003,0.0014,69879.0,69836.0,0.00148]
[1773243157332,0.0014,69878.0,69837.0,0.07904431]
[1773243157627,0.15169373,69889.0,69837.0,0.07904431]
[1773243157792,0.13838253,69888.0,69837.0,0.07904431]
[1773243158214,0.07154406,69887.0,69838.0,0.07159426]
[1773243158528,0.07290406,69887.0,69839.0,0.00148]
[1773243159035,0.00136,69886.0,69839.0,0.00148]
[1773243159193,0.00132,69886.0,69839.0,0.00148]
[1773243159397,0.08015152,69884.0,69839.0,0.00148]
[1773243160014,0.08015152,69884.0,69840.0,0.00148]
[1773243160251,0.571166,69880.0,69836.0,0.07159631]
[1773243160408,0.001,69863.0,69837.0,0.00148]
[1773243160618,0.08546268,69862.0,69837.0,0.00148]
[1773243160779,0.08546268,69862.0,69835.0,0.06307691]
[1773243161616,0.08546268,69862.0,69811.0,0.07162195]
[1773243161780,0.08546268,69862.0,69812.0,0.00148]
[1773243161781,0.08406268,69858.0,69812.0,0.00148]
[1773243162172,0.07157581,69856.0,69813.0,0.07161989]
[1773243162519,0.08406268,69855.0,69813.0,0.07161989]
[1773243162738,0.08406268,69854.0,69813.0,0.07161989]
[1773243163018,0.0014,69853.0,69813.0,0.07161989]
[1773243163172,0.13712965,69855.0,69813.0,0.07161989]
[1773243163367,0.0014,69854.0,69813.0,0.07161989]
[1773243163789,0.08406268,69853.0,69813.0,0.07161989]
[1773243164202,0.07157991,69852.0,69815.0,0.07161784]
[1773243164478,0.0014,69852.0,69815.0,0.07161784]
[1773243165116,0.07157899,69853.0,69815.0,0.06161784]
[1773243165293,0.07157899,69853.0,69815.0,0.06157784]
[1773243165294,0.0014,69852.0,69815.0,0.06157784]
[1773243166124,0.07157847,69854.0,69815.0,0.06157784]
[1773243166125,0.13712965,69854.0,69815.0,0.06157784]
[1773243166331,0.13712965,69861.0,69817.0,0.469807]
[1773243166487,0.20666886,69868.0,69822.0,0.08037658]
[1773243166488,0.07156875,69863.0,69822.0,0.08037658]
[1773243166697,0.00144,69862.0,69823.0,0.00148]
[1773243166912,0.13712965,69865.0,69817.0,0.15568]
[1773243167113,0.20869375,69868.0,69819.0,0.08037658]
[1773243167312,0.13712965,69867.0,69821.0,0.08037658]
[1773243167516,0.00144,69866.0,69821.0,0.08037658]
[1773243167697,0.00144,69866.0,69822.0,0.00148]
[1773243168097,0.13856965,69865.0,69822.0,0.00148]
[1773243168391,0.07156864,69863.0,69823.0,0.07160964]
[1773243168911,0.07156864,69863.0,69823.0,0.06160964]
[1773243169082,0.13856965,69862.0,69823.0,0.14198622]
[1773243169302,0.20810886,69874.0,69830.0,0.10338996]
[1773243169497,0.07155489,69877.0,69831.0,0.08185658]
[1773243169940,0.00144,69876.0,69832.0,0.00148]
[1773243170142,0.07155489,69877.0,69834.0,0.08304662]
[1773243170342,0.07155409,69878.0,69836.0,0.08304662]
[1773243170723,0.07155409,69878.0,69837.0,0.00148]
[1773243170922,0.07155409,69878.0,69838.0,0.00148]
[1773243171109,0.27822295,69878.0,69838.0,0.00148]
[1773243171309,0.27822295,69878.0,69836.0,0.07452662]
[1773243171553,0.27822295,69878.0,69835.0,0.07159733]
[1773243171554,0.27822295,69878.0,69837.0,0.00148]
[1773243171786,0.27822295,69878.0,69838.0,0.00148]
[1773243172195,0.20666886,69878.0,69841.0,0.08304662]
[1773243172321,0.0014,69878.0,69841.0,0.08304662]
[1773243172529,0.0715543,69877.0,69842.0,0.07159016]
[1773243172934,0.0729543,69878.0,69842.0,0.07159016]
[1773243173137,0.20809989,69880.0,69850.0,0.12909773]
[1773243173443,0.2784365,69884.0,69845.0,0.17184]
[1773243173645,0.20666886,69882.0,69846.0,0.00148]
[1773243174035,0.20666886,69882.0,69845.0,0.17184]
[1773243174363,0.20666886,69882.0,69849.0,0.08304662]
[1773243174563,0.27821721,69883.0,69850.0,0.07158196]
[1773243174746,0.00022001,69884.0,69851.0,0.08304662]
[1773243174955,0.07176738,69884.0,69851.0,0.08304662]
[1773243175159,0.07176721,69884.0,69851.0,0.08304662]
[1773243175365,0.27843632,69884.0,69850.0,0.07158196]
[1773243175587,0.29067951,69882.0,69851.0,0.00148]
[1773243175787,0.08401065,69881.0,69852.0,0.00148]
[1773243175994,0.29067951,69881.0,69852.0,0.00148]
[1773243176213,0.29067951,69881.0,69850.0,0.07158196]
[1773243177344,0.0715502,69881.0,69851.0,0.00148]
[1773243177549,0.00022001,69884.0,69851.0,0.08452662]
[1773243177550,0.20688887,69884.0,69851.0,0.08452662]
[1773243177720,0.27843662,69884.0,69851.0,0.08452662]
[1773243177882,0.20688887,69884.0,69851.0,0.08452662]
[1773243178267,0.00022001,69884.0,69851.0,0.08452662]
[1773243178488,1e-08,69884.0,69861.0,0.07157069]
[1773243178918,1e-08,69884.0,69862.0,0.00148]
[1773243179326,0.20666886,69879.0,69862.0,0.00148]
[1773243179557,0.20666886,69879.0,69861.0,0.07157069]
[1773243179558,0.20809992,69878.0,69863.0,0.00148]
[1773243179767,0.00143106,69878.0,69863.0,0.00148]
[1773243179959,1e-08,69884.0,69864.0,0.00148]
[1773243180308,1e-08,69884.0,69861.0,0.07157069]
[1773243180518,1e-08,69884.0,69862.0,0.00148]
[1773243180713,0.00148,69883.0,69857.0,0.07157478]
[1773243180912,0.08401065,69882.0,69859.0,0.00148]
[1773243181430,0.08401065,69880.0,69860.0,0.00148]
[1773243181629,0.13865434,69879.0,69864.0,0.001]
[1773243181830,0.14013434,69879.0,69864.0,0.001]
[1773243182213,0.13865434,69879.0,69860.0,0.00148]
[1773243182425,0.00148,69882.0,69860.0,0.00148]
[1773243182630,1e-08,69884.0,69861.0,0.07157069]
[1773243183478,0.08549065,69883.0,69833.0,0.07159938]
[1773243183620,0.12909773,69880.0,69833.0,0.07159938]
[1773243183824,0.12909773,69850.0,69821.0,0.07181161]
[1773243184064,0.08549065,69849.0,69821.0,0.07181161]
[1773243184491,0.08549065,69849.0,69821.0,0.0002]
[1773243184693,0.08401065,69847.0,69821.0,0.0002]
[1773243185036,0.20068174,69850.0,69822.0,0.00148]
[1773243185037,0.00148,69850.0,69822.0,0.00148]
[1773243185223,0.00148,69851.0,69822.0,0.00148]
[1773243185432,0.00148,69851.0,69821.0,0.0002]
[1773243185608,0.08401065,69850.0,69821.0,0.0002]
[1773243185810,0.29454957,69859.0,69821.0,0.0002]
[1773243186133,0.07305376,69858.0,69822.0,0.00148]
[1773243186350,0.07157376,69860.0,69830.0,0.12909773]
[1773243186351,0.0012528,69860.0,69830.0,0.12909773]
[1773243186841,0.0012528,69860.0,69831.0,0.07308143]
[1773243187403,0.07282543,69860.0,69831.0,0.07160143]
[1773243187605,0.0012528,69860.0,69832.0,0.00148]
[1773243187942,0.0728246,69860.0,69831.0,0.07160143]
[1773243188141,0.0728246,69860.0,69833.0,0.00148]
[1773243188298,0.00148,69859.0,69833.0,0.00148]
[1773243188499,0.08401065,69858.0,69833.0,0.00148]
[1773243188714,0.07157478,69857.0,69834.0,0.07159836]
[1773243188939,0.08401065,69856.0,69833.0,0.07307886]
[1773243189137,0.08401065,69856.0,69832.0,0.07160005]
[1773243189342,0.08444845,69856.0,69832.0,0.07160005]
[1773243189727,0.08444845,69856.0,69835.0,0.11406287]
[1773243189896,0.00148,69855.0,69837.0,0.11406287]
[1773243190113,0.00148,69855.0,69839.0,0.11406287]
[1773243190317,0.0019178,69855.0,69839.0,0.11406287]
[1773243190570,0.0019178,69855.0,69832.0,0.28546794]
[1773243190571,0.08401065,69854.0,69832.0,0.07307992]
[1773243190759,0.07157888,69853.0,69832.0,0.07307992]
[1773243191113,0.07201668,69853.0,69832.0,0.07307992]
[1773243191328,0.00148,69852.0,69832.0,0.07307992]
[1773243191738,0.08401065,69851.0,69832.0,0.07307992]
[1773243192162,0.08444845,69851.0,69826.0,0.00148]
[1773243192505,0.08401065,69849.0,69821.0,0.07181163]
[1773243192871,0.07158401,69848.0,69821.0,0.07181163]
[1773243193247,0.08401065,69847.0,69821.0,0.07181163]
[1773243193447,0.08401065,69847.0,69821.0,0.0002]
[1773243194157,0.00148,69846.0,69821.0,0.0002]
[1773243194762,0.0004378,69847.0,69821.0,0.0002]
[1773243194962,0.07306606,69846.0,69821.0,0.0002]
[1773243195150,0.0019178,69846.0,69821.0,0.0002]
[1773243195775,0.00148,69845.0,69821.0,0.0002]
[1773243195980,0.00028947,69846.0,69821.0,0.0002]
[1773243196156,0.07157446,69858.0,69821.0,0.0002]
[1773243196157,0.07157376,69858.0,69821.0,0.0002]
[1773243196800,0.00148,69858.0,69836.0,0.00143192]
[1773243196970,0.07157478,69857.0,69838.0,0.07159426]
[1773243197170,0.07157478,69857.0,69836.0,0.00143192]
[1773243197171,0.15558543,69857.0,69836.0,0.00143192]
[1773243197393,0.08401065,69856.0,69836.0,0.07302789]
[1773243197641,0.07157478,69857.0,69836.0,0.07302789]
[1773243197913,0.00148,69855.0,69836.0,0.07302789]
[1773243198129,0.07157478,69857.0,69836.0,0.07302789]
[1773243198362,1e-08,69884.0,69840.0,0.10330229]
[1773243198533,0.07176948,69882.0,69842.0,0.08304662]
[1773243198713,0.07176948,69882.0,69844.0,0.08304662]
[1773243198900,0.00022001,69882.0,69844.0,0.08304662]
[1773243199101,0.07176974,69882.0,69845.0,0.07306708]
[1773243199302,0.07176974,69882.0,69845.0,0.07158708]
[1773243199517,0.00022001,69882.0,69846.0,0.08452662]
[1773243199711,0.00022001,69882.0,69851.0,0.08110481]
[1773243201075,0.07176939,69882.0,69853.0,0.07157888]
[1773243201220,0.07176939,69882.0,69854.0,0.00148]
[1773243201423,0.00148,69881.0,69854.0,0.00148]
[1773243201875,0.08781726,69880.0,69848.0,0.00148]
[1773243202281,0.00148,69881.0,69848.0,0.00148]
[1773243202282,0.13899537,69881.0,69848.0,0.00148]
[1773243202430,0.00022001,69882.0,69849.0,0.08110481]
[1773243202632,0.00022001,69882.0,69848.0,0.00148]
[1773243202633,0.00148,69881.0,69848.0,0.00148]
[1773243203278,0.08781726,69879.0,69841.0,0.00148]
[1773243203512,0.08781726,69879.0,69836.0,0.2290672]
[1773243203513,0.08781726,69879.0,69842.0,0.00148]
[1773243203726,0.08781726,69877.0,69843.0,0.00148]
[1773243205021,0.08781726,69877.0,69837.0,0.06307511]
[1773243205307,0.08781726,69875.0,69839.0,0.07159323]
[1773243206102,0.08781726,69875.0,69851.0,0.001]
[1773243206322,0.08781726,69875.0,69838.0,0.07159323]
[1773243206532,0.03719219,69874.0,69834.0,0.00148]
[1773243206701,0.08781726,69875.0,69834.0,0.00148]
[1773243207098,0.07155839,69873.0,69835.0,0.07159733]
[1773243207297,0.07155839,69873.0,69836.0,0.0002]
[1773243207500,0.07155839,69873.0,69835.0,0.06179733]
[1773243207909,0.07155839,69874.0,69840.0,0.12910552]
[1773243208107,0.00148,69873.0,69840.0,0.12910552]
[1773243208307,0.00148,69873.0,69835.0,0.06179733]
[1773243208747,0.07155839,69874.0,69841.0,0.08110481]
[1773243208900,0.07303737,69875.0,69841.0,0.08110481]
[1773243209315,0.07303737,69875.0,69842.0,0.07159016]
[1773243209563,0.00165101,69881.0,69842.0,0.07159016]
[1773243209564,0.00165101,69881.0,69843.0,0.00144]
[1773243209763,0.00148,69880.0,69845.0,0.17133571]
[1773243210013,0.00148,69880.0,69848.0,0.08110481]
[1773243210373,0.00148,69879.0,69848.0,0.08110481]
[1773243210576,0.0732013,69881.0,69851.0,0.07110481]
[1773243210577,1e-08,69881.0,69851.0,0.07110481]
[1773243210782,0.00022001,69882.0,69851.0,0.07110481]
[1773243210783,1e-08,69882.0,69870.0,0.12905671]
[1773243210990,1e-08,69882.0,69872.0,0.29235543]
[1773243211205,1e-08,69882.0,69873.0,0.00144]
[1773243211406,1e-08,69882.0,69869.0,0.00144]
[1773243211683,0.00148,69881.0,69849.0,0.07158298]
[1773243211903,0.00148,69881.0,69850.0,0.00144]
[1773243212342,1e-08,69882.0,69851.0,0.08110481]
[1773243212677,1e-08,69882.0,69852.0,0.00144]
[1773243212678,0.00148,69881.0,69852.0,0.00144]
[1773243213027,1e-08,69882.0,69852.0,0.00144]
[1773243213231,1e-08,69882.0,69854.0,0.08110481]
[1773243213429,1e-08,69882.0,69854.0,0.07110481]
[1773243213806,1e-08,69882.0,69853.0,0.07157888]
[1773243214310,1e-08,69882.0,69860.0,0.12905671]
[1773243214506,1e-08,69882.0,69861.0,0.08258481]
[1773243214714,1e-08,69882.0,69861.0,0.00148]
[1773243215319,1e-08,69882.0,69862.0,0.07156966]
[1773243215528,1e-08,69882.0,69862.0,0.06156966]
[1773243215777,1e-08,69882.0,69863.0,0.08110481]
[1773243216001,1e-08,69882.0,69862.0,0.06156966]
[1773243216214,1e-08,69882.0,69861.0,0.07157041]
[1773243216414,1e-08,69882.0,69862.0,0.00148]
[1773243216781,1e-08,69882.0,69861.0,0.07157041]
[1773243217381,0.00148,69881.0,69860.0,0.07305069]
[1773243217955,0.07154919,69882.0,69860.0,0.07305069]
[1773243218164,0.07154919,69882.0,69852.0,0.001]
[1773243218165,0.08781726,69880.0,69852.0,0.0725796]
[1773243218390,0.08781726,69880.0,69853.0,0.00148]
[1773243219118,0.00148,69879.0,69853.0,0.00148]
[1773243219319,0.07155327,69878.0,69854.0,0.07157786]
[1773243219689,0.00148,69877.0,69854.0,0.07157786]
[1773243220443,0.00148,69876.0,69854.0,0.07157786]
[1773243220639,0.07155327,69878.0,69854.0,0.07157786]
[1773243220640,0.00148,69875.0,69854.0,0.15434478]
[1773243220842,0.00148,69876.0,69855.0,0.08276692]
[1773243221055,0.00148,69876.0,69854.0,0.07157786]
[1773243221334,0.07155635,69875.0,69854.0,0.07157786]
[1773243221550,0.07155635,69875.0,69855.0,0.00148]
[1773243222311,0.07155635,69875.0,69853.0,0.00148]
[1773243223255,0.06155635,69875.0,69853.0,0.00148]
[1773243223456,0.06155635,69875.0,69854.0,0.07157786]
[1773243223899,0.07154066,69891.0,69854.0,0.07157786]
[1773243223900,0.00148,69881.0,69855.0,0.08276692]
[1773243224264,0.00148,69887.0,69855.0,0.08276692]
[1773243224466,0.07153802,69893.0,69855.0,0.08276692]
[1773243224676,0.00148,69892.0,69855.0,0.08276692]
[1773243224864,0.00148,69892.0,69856.0,0.00148]
[1773243225167,0.00148,69892.0,69856.0,0.08424692]
[1773243225389,0.07153996,69891.0,69857.0,0.07157478]
[1773243225590,0.07153996,69891.0,69857.0,0.1543417]
[1773243225903,0.07153996,69891.0,69858.0,0.08276692]
[1773243226110,0.00148,69890.0,69858.0,0.08276692]
[1773243226320,0.07153996,69891.0,69858.0,0.08276692]
[1773243226535,0.07153587,69895.0,69861.0,0.08276692]
[1773243226903,0.06301587,69895.0,69864.0,0.30589307]
[1773243227116,0.06153587,69895.0,69865.0,0.08276692]
[1773243227488,0.06153587,69895.0,69866.0,0.07156556]
[1773243227687,0.06153587,69895.0,69867.0,0.08276692]
[1773243227944,0.07175079,69900.0,69869.0,0.08276692]
[1773243228162,0.00022001,69900.0,69869.0,0.08276692]
[1773243228770,0.00022001,69900.0,69868.0,0.00148]
[1773243228771,0.0028906,69902.0,69871.0,0.08276692]
[1773243229051,0.00022001,69907.0,69871.0,0.08276692]
[1773243229250,0.0623408,69905.0,69873.0,0.08276692]
[1773243229452,0.00148,69904.0,69873.0,0.08276692]
[1773243229611,0.07152768,69903.0,69875.0,0.08897255]
[1773243230063,0.00148,69902.0,69875.0,0.08897255]
[1773243230214,0.00148,69902.0,69874.0,0.07155737]
[1773243230215,0.00148,69902.0,69877.0,0.08897255]
[1773243230423,0.06152768,69903.0,69874.0,0.07155737]
[1773243230424,0.05300768,69903.0,69878.0,0.00148]
[1773243230765,0.05300768,69903.0,69879.0,0.08897255]
[1773243230963,0.04300768,69903.0,69879.0,0.08897255]
[1773243231167,0.07152768,69904.0,69879.0,0.08897255]
[1773243231752,0.07152603,69905.0,69880.0,0.07155123]
[1773243232116,0.07152603,69905.0,69881.0,0.08897255]
[1773243232726,0.00148,69904.0,69881.0,0.08897255]
[1773243233035,0.00148,69904.0,69880.0,0.07155123]
[1773243233236,0.12905671,69890.0,69868.0,0.0002]
[1773243233458,0.00148,69889.0,69868.0,0.07176322]
[1773243233657,0.00148,69888.0,69868.0,0.07176322]
[1773243233843,0.00148,69889.0,69869.0,0.00148]
[1773243234035,0.0715328,69898.0,69869.0,0.00148]
[1773243234244,0.0715328,69898.0,69870.0,0.08897255]
[1773243234656,0.00148,69897.0,69870.0,0.08897255]
[1773243234864,0.0715328,69898.0,69870.0,0.08897255]
[1773243234865,0.00148,69896.0,69870.0,0.08897255]
[1773243236121,0.0730128,69898.0,69872.0,0.08897255]
[1773243236465,0.12927672,69910.0,69873.0,0.08897255]
[1773243236466,0.07322777,69903.0,69873.0,0.08897255]
[1773243236916,0.07174777,69903.0,69873.0,0.08897255]
[1773243237250,0.00148,69902.0,69873.0,0.08897255]
[1773243238067,0.07174777,69903.0,69874.0,0.07155737]
[1773243238278,0.00148,69901.0,69875.0,0.09045255]
[1773243238429,0.07174777,69903.0,69875.0,0.09045255]
[1773243238430,0.00022001,69903.0,69875.0,0.09045255]
[1773243239068,0.001,69902.0,69875.0,0.09045255]
[1773243239550,0.07174819,69903.0,69875.0,0.09045255]
[1773243239759,0.07174819,69903.0,69875.0,0.08897255]
[1773243239953,0.07174819,69903.0,69876.0,0.00148]
[1773243240183,0.07174819,69903.0,69877.0,0.0715543]
[1773243240641,0.07174819,69903.0,69878.0,0.00148]
[1773243241043,0.07322819,69903.0,69878.0,0.00148]
[1773243241445,0.07174819,69903.0,69879.0,0.08897255]
[1773243241684,0.00022001,69903.0,69879.0,0.08897255]
[1773243242117,0.00022001,69907.0,69881.0,0.08897255]
[1773243242245,0.00022001,69907.0,69882.0,0.07154918]
[1773243242593,0.00022001,69907.0,69883.0,0.08897255]
[1773243242808,0.00022001,69907.0,69882.0,0.07154918]
[1773243242809,0.07174443,69907.0,69885.0,0.08897255]
[1773243243027,0.00022001,69910.0,69885.0,0.08897255]
[1773243243214,0.0729451,69916.0,69885.0,0.08897255]
[1773243243358,0.00143028,69916.0,69885.0,0.08897255]
[1773243243564,0.20852423,69948.0,69884.0,0.00148]
[1773243243565,0.07149234,69938.0,69901.0,0.28468943]
[1773243243769,0.07149495,69935.0,69902.0,0.09045255]
[1773243244191,0.07196352,69947.0,69912.0,0.08897255]
[1773243244418,0.07196352,69947.0,69911.0,0.0715195]
[1773243244419,0.07196352,69947.0,69914.0,0.08897255]
[1773243244620,0.07196352,69947.0,69916.0,0.08897255]
[1773243244819,0.07196352,69947.0,69917.0,0.00148]
[1773243244995,0.07196289,69947.0,69918.0,0.08897255]
[1773243245199,0.00148,69946.0,69918.0,0.08897255]
[1773243245382,0.00148,69946.0,69919.0,0.00148]
[1773243245383,0.13622151,69946.0,69919.0,0.00148]
[1773243245582,0.13622151,69946.0,69911.0,0.0715195]
[1773243245583,0.00148,69946.0,69911.0,0.0715195]
[1773243245780,0.2067044,69947.0,69913.0,0.08897255]
[1773243245983,0.00048,69947.0,69913.0,0.08897255]
[1773243246207,0.07196293,69947.0,69921.0,0.08897255]
[1773243246381,0.07196293,69947.0,69922.0,0.00148]
[1773243246585,0.00148,69946.0,69915.0,0.07151541]
[1773243246791,0.00148,69946.0,69916.0,0.00148]
[1773243246792,0.0018704,69946.0,69916.0,0.00148]
[1773243247110,0.00148,69945.0,69916.0,0.00148]
[1773243247779,0.0018704,69945.0,69917.0,0.08897255]
[1773243247981,0.0003904,69945.0,69920.0,0.12905671]
[1773243248180,0.0003904,69945.0,69921.0,0.08897255]
[1773243248418,0.00048,69947.0,69923.0,0.08897255]
[1773243248618,0.07196288,69947.0,69925.0,0.08897255]
[1773243248819,0.00048,69947.0,69925.0,0.08897255]
[1773243249027,0.00142956,69951.0,69927.0,0.08897255]
[1773243249333,0.13467421,69954.0,69927.0,0.08897255]
[1773243249334,0.07147656,69954.0,69927.0,0.08897255]
[1773243249483,0.07147145,69958.0,69929.0,0.08754227]
[1773243249683,0.00142956,69951.0,69929.0,0.08754227]
[1773243250304,0.00142956,69951.0,69929.0,0.08434227]
[1773243250519,0.00142956,69951.0,69932.0,0.08897255]
[1773243250921,0.01124,69959.0,69932.0,0.08897255]
[1773243250922,1e-08,69962.0,69932.0,0.08897255]
[1773243251125,0.07144429,69985.0,69941.0,0.08897255]
[1773243251331,0.07144286,69988.0,69950.0,0.12905671]
[1773243251590,0.07292388,69985.0,69952.0,0.08897255]
[1773243251761,0.07991814,69979.0,69946.0,0.00148]
[1773243251994,0.00022001,69953.0,69946.0,0.00148]
[1773243252266,0.07991814,69979.0,69946.0,0.00148]
[1773243252267,0.00148,69966.0,69946.0,0.00148]
[1773243252515,0.07145102,69978.0,69947.0,0.07148269]
[1773243252658,0.00144,69981.0,69948.0,0.08897255]
[1773243252861,0.07144303,69986.0,69951.0,0.08897255]
[1773243254406,0.00144,69985.0,69951.0,0.08897255]
[1773243254548,0.07143619,69993.0,69953.0,0.08897255]
[1773243254752,0.37386258,69991.0,69955.0,0.08897255]
[1773243254982,0.07143367,69997.0,69961.0,0.08897255]
[1773243255195,0.07143367,69997.0,69963.0,0.08897255]
[1773243255842,0.00144,69996.0,69964.0,0.00148]
[1773243256044,0.07143367,69997.0,69965.0,0.09045255]
[1773243256263,0.00144,69996.0,69967.0,0.08897255]
[1773243256462,0.00144,69996.0,69968.0,5.002e-05]
[1773243256668,0.00144,69995.0,69969.0,0.00148]
[1773243256896,0.08016818,69994.0,69964.0,0.00148]
[1773243257104,0.07142796,70001.0,69966.0,0.08897255]
[1773243257308,0.07142796,70001.0,69968.0,0.08897255]
[1773243257725,0.00148,70002.0,69971.0,0.08897255]
[1773243257938,0.07150055,70003.0,69967.0,0.00148]
[1773243257939,7.5e-05,70003.0,69980.0,0.12905671]
[1773243258127,7.5e-05,70003.0,69981.0,0.09045255]
[1773243258374,0.07150093,70003.0,69982.0,0.00148]
[1773243258520,7.5e-05,70003.0,69982.0,0.09045255]
[1773243258719,7.5e-05,70003.0,69984.0,0.08897255]
[1773243259129,0.01,70015.0,69990.0,0.12905671]
[1773243259329,1e-08,70016.0,70000.0,0.12905671]
[1773243259525,1e-08,70016.0,70000.0,0.08897255]
[1773243259730,1e-08,70016.0,70001.0,0.00148]
[1773243260051,1e-08,70016.0,70002.0,0.08918164]
[1773243260248,1e-08,70016.0,70003.0,0.0010294]
[1773243260494,0.03069681,70027.0,70004.0,0.08918164]
[1773243260663,1e-08,70027.0,70005.0,0.1606051]
[1773243260870,1e-08,70027.0,70006.0,0.08770164]
[1773243261453,1e-08,70027.0,70007.0,0.00148]
[1773243262261,0.00148001,70027.0,70007.0,0.00148]
[1773243262668,0.07140205,70026.0,70006.0,0.07142229]
[1773243263050,0.00148,70025.0,70006.0,0.07142229]
[1773243263899,0.00022001,70011.0,70007.0,0.00148]
[1773243264427,0.07140145,70027.0,70007.0,0.00148]
[1773243264592,0.00022001,70018.0,70008.0,0.0714204]
[1773243265825,1e-08,70027.0,70008.0,0.0714204]
[1773243266268,0.07140197,70027.0,70008.0,0.0714204]
[1773243266675,0.00148,70026.0,70008.0,0.0714204]
[1773243267075,1e-08,70027.0,70008.0,0.0714204]
[1773243268202,0.00142803,70027.0,70008.0,0.0714204]
[1773243268703,0.07282927,70027.0,70008.0,0.0714204]
[1773243268901,0.00142803,70027.0,70008.0,0.0714204]
[1773243269305,0.08148885,70044.0,70008.0,0.0714204]
[1773243269306,0.00148,70046.0,70011.0,0.09476335]
[1773243269504,0.00142731,70062.0,70022.0,0.09476335]
[1773243269681,0.00142731,70062.0,70024.0,0.09476335]
[1773243269682,0.07159473,70053.0,70024.0,0.09476335]
[1773243269886,0.07159473,70053.0,70025.0,0.00148]
[1773243270086,0.07307473,70053.0,70026.0,0.00148]
[1773243270294,0.00199165,70052.0,70026.0,0.00148]
[1773243270990,0.07137656,70051.0,70028.0,0.0948269]
[1773243271220,0.07137656,70051.0,70028.0,0.0932269]
[1773243271525,0.00022001,70053.0,70028.0,0.0932269]
[1773243271741,0.07159483,70053.0,70028.0,0.0932269]
[1773243272251,0.07137453,70056.0,70028.0,0.0932269]
[1773243272452,1e-08,70073.0,70042.0,0.29730716]
[1773243272636,1e-08,70073.0,70051.0,0.09575917]
[1773243272789,0.07135463,70073.0,70051.0,0.09575917]
[1773243272989,1e-08,70073.0,70053.0,0.1671337]
[1773243273628,1e-08,70073.0,70054.0,0.09575917]
[1773243274642,1e-08,70073.0,70053.0,0.07137453]
[1773243274842,1e-08,70073.0,70055.0,0.00148]
[1773243275080,1e-08,70073.0,70056.0,0.00148]
[1773243275832,1e-08,70073.0,70044.0,0.0713837]
[1773243276037,1e-08,70073.0,70045.0,0.00148]
[1773243276373,1e-08,70073.0,70047.0,0.09581897]
[1773243277036,1e-08,70073.0,70048.0,0.07285962]
[1773243277377,1e-08,70073.0,70048.0,0.07137962]
[1773243277593,1e-08,70073.0,70049.0,0.00148]
[1773243278126,0.00104895,70075.0,70049.0,0.00148]
[1773243279057,0.07135314,70074.0,70053.0,0.001]
[1773243279439,0.00144,70073.0,70053.0,0.001]
[1773243279807,0.00144,70073.0,70048.0,0.07285893]
[1773243279937,0.00144,70073.0,70050.0,0.00148]
[1773243280283,0.00144,70072.0,70050.0,0.00148]
[1773243280432,0.00144,70071.0,70050.0,0.00148]
[1773243280658,0.07135314,70077.0,70050.0,0.00148]
[1773243280659,0.07132972,70097.0,70052.0,0.287685]